fUST/lending_fUST_20240118
["ID","MTS","AMOUNT","RATE_DAILY","PERIOD"]
[311980465,1705528243097,-500.0,0.00022054,2]
[311980467,1705528243106,-500.0,0.00022054,2]
[311980469,1705528243115,-500.0,0.00022054,2]
[311980471,1705528243123,-500.0,0.00022054,2]
[311980473,1705528243133,-500.0,0.00022054,2]
[311980475,1705528243142,-500.0,0.00022054,2]
[311980477,1705528243151,-500.0,0.00022054,2]
[311980479,1705528243162,-629.97,0.00022054,2]
[311980481,1705528243171,-500.0,0.00022054,2]
[311980483,1705528243181,-500.0,0.00022054,2]
[311980485,1705528243190,-169.33,0.00022054,2]
[311980487,1705528243199,-501.93703226,0.00022054,2]
[311980489,1705528243208,-500.0,0.00022054,2]
[311980491,1705528243217,-500.0,0.00022054,2]
[311980492,1705528243226,-500.0,0.00022054,2]
[311980501,1705528243294,-500.0,0.00022054,2]
[311980503,1705528243303,-500.0,0.00022054,2]
[311980505,1705528243313,-500.0,0.00022054,2]
[311980507,1705528243322,-500.0,0.00022054,2]
[311980509,1705528243331,-500.0,0.00022054,2]
[311980510,1705528243341,-500.0,0.00022054,2]
[311980512,1705528243351,-500.0,0.00022054,2]
[311980514,1705528243360,-500.0,0.00022054,2]
[311980516,1705528243369,-2390.29,0.00022054,2]
[311980518,1705528243378,-500.0,0.00022054,2]
[311980520,1705528243387,-500.0,0.00022054,2]
[311980521,1705528243396,-337.81788515,0.00022054,2]
[311980523,1705528243405,-500.0,0.00022054,2]
[311980525,1705528243414,-624.65,0.0002209,2]
[311980527,1705528243423,-624.65,0.00022123,2]
[311980528,1705528243433,-186.95677419,0.00022153,2]
[311980529,1705528243442,-624.65,0.0002219,2]
[311980530,1705528243451,-624.65,0.0002219,2]
[311980531,1705528243461,-500.0,0.00022191,2]
[311980532,1705528243470,-500.0,0.00022191,2]
[311980533,1705528243479,-500.0,0.00022191,2]
[311980534,1705528243488,-500.0,0.00022191,2]
[311980535,1705528243497,-500.0,0.00022191,2]
[311980536,1705528243506,-500.0,0.00022191,2]
[311980537,1705528243515,-500.0,0.00022191,2]
[311980538,1705528243524,-500.0,0.00022191,2]
[311980539,1705528243533,-500.0,0.00022191,2]
[311980540,1705528243541,-513.75406854,0.00022191,2]
[311980541,1705528243550,-500.0,0.00022191,2]
[311980542,1705528243559,-500.0,0.00022191,2]
[311980543,1705528243570,-500.0,0.00022191,2]
[311980544,1705528243583,-500.0,0.00022191,2]
[311980545,1705528243592,-197.63957451,0.00022191,2]
[311980546,1705528243601,-500.0,0.00022191,2]
[311980547,1705528243610,-1000.0,0.00022191,2]
[311980548,1705528243621,-500.0,0.00022191,2]
[311980549,1705528243630,-500.0,0.00022191,2]
[311980550,1705528243639,-500.0,0.00022191,2]
[311980551,1705528243648,-500.0,0.00022191,2]
[311980552,1705528243658,-505.78802017,0.00022191,2]
[311980553,1705528243667,-500.0,0.00022191,2]
[311980554,1705528243677,-388.70818294,0.00022191,2]
[311980555,1705528243686,-500.0,0.00022191,2]
[311980556,1705528243695,-500.0,0.00022191,2]
[311980558,1705528243704,-500.0,0.00022191,2]
[311980560,1705528243714,-500.0,0.00022191,2]
[311980562,1705528243723,-325.42261473,0.00022191,2]
[311980564,1705528243732,-500.0,0.00022191,2]
[311980566,1705528243742,-500.0,0.00022191,2]
[311980568,1705528243752,-500.06605491,0.00022191,2]
[311980570,1705528243761,-500.0,0.00022191,2]
[311980572,1705528243770,-500.0,0.00022191,2]
[311980574,1705528243779,-364.85779853,0.00022191,2]
[311980576,1705528243789,-500.0,0.00022191,2]
[311980578,1705528243798,-500.0,0.00022191,2]
[311980580,1705528243807,-500.0,0.00022191,2]
[311980582,1705528243816,-500.0,0.00022191,2]
[311980584,1705528243825,-500.0,0.00022191,2]
[311980586,1705528243834,-500.0,0.00022191,2]
[311980588,1705528243844,-500.0,0.00022191,2]
[311980590,1705528243853,-500.0,0.00022191,2]
[311980592,1705528243862,-500.0,0.00022191,2]
[311980593,1705528243872,-500.0,0.00022191,2]
[311980595,1705528243882,-500.0,0.00022191,2]
[311980597,1705528243892,-500.0,0.00022191,2]
[311980599,1705528243901,-500.0,0.00022191,2]
[311980601,1705528243910,-638.05377541,0.00022191,2]
[311980603,1705528243919,-500.0,0.00022191,2]
[311980605,1705528243927,-500.0,0.00022191,2]
[311980607,1705528243936,-500.0,0.00022191,2]
[311980609,1705528243946,-500.0,0.00022191,2]
[311980611,1705528243954,-571.75,0.00022191,2]
[311980613,1705528243963,-500.0,0.00022191,2]
[311980615,1705528243972,-500.0,0.00022191,2]
[311980617,1705528243981,-500.0,0.00022191,2]
[311980619,1705528243990,-500.0,0.00022191,2]
[311980621,1705528243999,-500.0,0.00022191,2]
[311980623,1705528244009,-500.0,0.00022191,2]
[311980625,1705528244017,-500.0,0.00022191,2]
[311980627,1705528244026,-593.72122543,0.00022191,2]
[311980629,1705528244035,-500.0,0.00022191,2]
[311980631,1705528244044,-613.83179495,0.00022191,2]
[311980633,1705528244053,-500.0,0.00022191,2]
[311980635,1705528244062,-500.0,0.00022191,2]
[311980637,1705528244072,-500.0,0.00022191,2]
[311980639,1705528244081,-500.0,0.00022191,2]
[311980641,1705528244089,-500.0,0.00022191,2]
[311980643,1705528244099,-5833.65,0.00022191,2]
[311980645,1705528244107,-502.08749637,0.00022191,2]
[311980647,1705528244116,-500.0,0.00022191,2]
[311980649,1705528244125,-530.50360264,0.00022191,2]
[311980651,1705528244134,-500.0,0.00022191,2]
[311980653,1705528244143,-200.0,0.00022191,2]
[311980655,1705528244152,-325.91663912,0.00022191,2]
[311980657,1705528244161,-957.69,0.00022191,2]
[311980659,1705528244170,-500.0,0.00022191,2]
[311980661,1705528244180,-500.0,0.00022191,2]
[311980663,1705528244189,-500.0,0.00022191,2]
[311980665,1705528244200,-1284.08,0.00022191,2]
[311980667,1705528244208,-500.0,0.00022191,2]
[311980669,1705528244217,-500.0,0.00022191,2]
[311980670,1705528244226,-852.06,0.00022191,2]
[311980672,1705528244235,-500.0,0.00022191,2]
[311980674,1705528244244,-1308.79,0.00022191,2]
[311980676,1705528244253,-500.0,0.00022191,2]
[311980678,1705528244262,-500.0,0.00022191,2]
[311980679,1705528244271,-509.68,0.00022191,2]
[311980681,1705528244280,-500.0,0.00022191,2]
[311980683,1705528244290,-210.3,0.00022191,2]
[311980685,1705528244298,-500.0,0.00022191,2]
[311980687,1705528244308,-500.0,0.00022191,2]
[311980689,1705528244317,-500.0,0.00022191,2]
[311980691,1705528244326,-500.0,0.00022191,2]
[311980692,1705528244335,-500.0,0.00022191,2]
[311980694,1705528244344,-500.0,0.00022191,2]
[311980696,1705528244353,-2970.16,0.00022191,2]
[311980698,1705528244361,-500.0,0.00022191,2]
[311980706,1705528244426,-500.0,0.00022191,2]
[311980708,1705528244435,-500.0,0.00022191,2]
[311980710,1705528244444,-500.0,0.00022191,2]
[311980711,1705528244453,-500.0,0.00022191,2]
[311980713,1705528244462,-500.0,0.00022191,2]
[311980715,1705528244471,-500.0,0.00022191,2]
[311980717,1705528244480,-500.0,0.00022191,2]
[311980719,1705528244490,-629.97,0.00022191,2]
[311980721,1705528244499,-500.0,0.00022191,2]
[311980723,1705528244508,-500.0,0.00022191,2]
[311980725,1705528244518,-500.0,0.00022191,2]
[311980727,1705528244527,-500.0,0.00022191,2]
[311980729,1705528244537,-532.33924089,0.00022191,2]
[311980731,1705528244546,-500.0,0.00022191,2]
[311980733,1705528244555,-500.0,0.00022191,2]
[311980735,1705528244564,-500.0,0.00022191,2]
[311980736,1705528244575,-500.0,0.00022191,2]
[311980738,1705528244585,-500.0,0.00022191,2]
[311980740,1705528244595,-2390.29,0.00022191,2]
[311980742,1705528244603,-500.0,0.00022191,2]
[311980744,1705528244613,-186.95677419,0.00022265,2]
[311980746,1705528244624,-624.65,0.00022327,2]
[311980748,1705528244633,-624.65,0.00022327,2]
[311980750,1705528244642,-624.65,0.00022327,2]
[311980752,1705528244652,-624.65,0.00022327,2]
[311980754,1705528244663,-624.65,0.00022327,2]
[311980756,1705528244673,-624.68,0.00022327,2]
[311980758,1705528244684,-500.0,0.00022328,2]
[311980760,1705528244693,-500.0,0.00022328,2]
[311980762,1705528244701,-496.84283628,0.00022328,2]
[311980764,1705528244710,-500.0,0.00022328,2]
[311980766,1705528244719,-500.0,0.00022328,2]
[311980768,1705528244728,-500.0,0.00022328,2]
[311980770,1705528244737,-500.0,0.00022328,2]
[311980772,1705528244745,-500.0,0.00022328,2]
[311980774,1705528244754,-500.0,0.00022328,2]
[311980776,1705528244763,-500.0,0.00022328,2]
[311980778,1705528244772,-500.0,0.00022328,2]
[311980780,1705528244781,-500.0,0.00022328,2]
[311980782,1705528244790,-500.0,0.00022328,2]
[311980784,1705528244798,-500.0,0.00022328,2]
[311980786,1705528244807,-511.65056995,0.00022328,2]
[311980788,1705528244816,-476.36050445,0.00022328,2]
[311980790,1705528244825,-500.0,0.00022328,2]
[311980791,1705528244834,-500.0,0.00022328,2]
[311980793,1705528244845,-500.0,0.00022328,2]
[311980795,1705528244854,-500.0,0.00022328,2]
[311980797,1705528244864,-500.0,0.00022328,2]
[311980799,1705528244873,-500.0,0.00022328,2]
[311980801,1705528244882,-500.0,0.00022328,2]
[311980803,1705528244890,-571.75,0.00022328,2]
[311980805,1705528244900,-500.0,0.00022328,2]
[311980807,1705528244909,-500.0,0.00022328,2]
[311980810,1705528244927,-500.0,0.00022328,2]
[311980812,1705528244944,-500.0,0.00022328,2]
[311980815,1705528244957,-500.0,0.00022328,2]
[311980818,1705528244973,-455.68,0.00022328,2]
[311980820,1705528244990,-500.0,0.00022328,2]
[311980823,1705528245005,-5833.65,0.00022328,2]
[311980825,1705528245019,-500.0,0.00022328,2]
[311980828,1705528245033,-957.69,0.00022328,2]
[311980830,1705528245048,-500.0,0.00022328,2]
[311980833,1705528245064,-500.0,0.00022328,2]
[311980835,1705528245076,-1284.08,0.00022328,2]
[311980838,1705528245092,-500.0,0.00022328,2]
[311980840,1705528245106,-500.0,0.00022328,2]
[311980843,1705528245120,-852.06,0.00022328,2]
[311980845,1705528245134,-500.0,0.00022328,2]
[311980848,1705528245150,-1308.79,0.00022328,2]
[311980851,1705528245167,-500.0,0.00022328,2]
[311980853,1705528245183,-500.0,0.00022328,2]
[311980855,1705528245194,-509.68,0.00022328,2]
[311980858,1705528245207,-500.0,0.00022328,2]
[311980860,1705528245221,-500.0,0.00022328,2]
[311980862,1705528245234,-500.0,0.00022328,2]
[311980865,1705528245245,-500.0,0.00022328,2]
[311980867,1705528245257,-500.0,0.00022328,2]
[311980869,1705528245269,-168.73604106,0.00022328,2]
[311980872,1705528245282,-539.44145748,0.00022328,2]
[311980874,1705528245294,-2970.16,0.00022328,2]
[311980876,1705528245306,-500.0,0.00022328,2]
[311980878,1705528245319,-500.0,0.00022328,2]
[311980881,1705528245332,-500.0,0.00022328,2]
[311980883,1705528245345,-500.0,0.00022328,2]
[311980885,1705528245357,-500.0,0.00022328,2]
[311980888,1705528245369,-500.0,0.00022328,2]
[311980890,1705528245382,-277.13,0.00022328,2]
[311980893,1705528245394,-500.0,0.00022328,2]
[311980896,1705528245406,-629.97,0.00022328,2]
[311980901,1705528245419,-490.57231035,0.00022328,2]
[311980904,1705528245433,-500.0,0.00022328,2]
[311980907,1705528245445,-500.0,0.00022328,2]
[311980910,1705528245457,-500.0,0.00022328,2]
[311980914,1705528245469,-500.0,0.00022328,2]
[311980916,1705528245481,-500.0,0.00022328,2]
[311980918,1705528245493,-500.0,0.00022328,2]
[311980920,1705528245505,-272.60348073,0.00022328,2]
[311980923,1705528245517,-500.0,0.00022328,2]
[311980925,1705528245529,-2390.29,0.00022328,2]
[311980927,1705528245542,-500.0,0.00022328,2]
[311980930,1705528245555,-150401.87096591,0.00022365,2]
[311980961,1705528245737,-4682.44158881,0.00022365,2]
[311981058,1705528246738,-7275.54073768,0.00022365,2]
[311981069,1705528246838,-500.0,0.00021999,2]
[311981071,1705528246848,-500.0,0.00022053,2]
[311981073,1705528246857,-500.0,0.00022053,2]
[311981075,1705528246866,-500.0,0.0002219,2]
[311981077,1705528246875,-626.89,0.00022327,2]
[311981079,1705528246884,-493.11779594,0.00022365,2]
[311981082,1705528246895,-1121.43733731,0.00022365,2]
[311981084,1705528246906,-2095.38839423,0.00022365,2]
[311981098,1705528247027,162.16655393,0.00017744,2]
[311981100,1705528247045,-408.83999967,0.00022365,2]
[311981103,1705528247058,-5085.15029064,0.00022365,2]
[311981107,1705528247082,-719.13124729,0.00022365,2]
[311981449,1705528256254,154.98450155,0.00017744,2]
[311981450,1705528261865,320.40143759,0.00017744,2]
[311981451,1705528272429,547.46838753,0.00017744,2]
[311981452,1705528273813,618.89291521,0.00017744,2]
[311981454,1705528286516,547.46838753,0.00017744,2]
[311981455,1705528302450,340.0281163,0.00017744,2]
[311981456,1705528314555,645.83521674,0.00017744,2]
[311981472,1705528457546,154.90705177,0.000176,2]
[311981474,1705528468568,38838.05984825,0.0001,2]
[311981475,1705528468593,36938.72074232,0.0001,2]
[311981488,1705528656593,40197.07112468,0.00016,2]
[311981492,1705528708726,263.1680597,0.00018438,2]
[311981493,1705528715381,1658.9806948,0.00018291,2]
[311981508,1705528966658,2353.4531355,0.00018283,2]
[311981514,1705529021611,24900.0,0.00018469,2]
[311981596,1705529432072,-154.98450155,0.00018627,3]
[311981597,1705529432081,-108.18355817,0.00018627,2]
[311982311,1705529439339,-46.80094338,0.00018627,2]
[311982313,1705529439348,-154.98450155,0.00018628,2]
[311982315,1705529439359,-737.657806,0.00018639,2]
[311982317,1705529439368,-3000.0,0.00018679,2]
[311982320,1705529439377,-21667.37739351,0.00018872,2]
[311982323,1705529439387,-661.8542805,0.00018873,2]
[311982328,1705529439401,-1113.4986138,0.000195,2]
[311982331,1705529439415,-154.98450155,0.0002,2]
[311982335,1705529439428,-3549.79857409,0.0002082,2]
[311982339,1705529439441,-327.18048,0.00021,2]
[311982342,1705529439451,-1815.68321298,0.00021,2]
[311982345,1705529439464,-13317.05033461,0.00021,2]
[311982349,1705529439476,-17716.04374049,0.00021,2]
[311982353,1705529439488,-249.51667028,0.00021,2]
[311982356,1705529439501,-1000.0,0.000211,2]
[311982360,1705529439514,-2024.31,0.00021151,3]
[311982363,1705529439527,-50000.0,0.00021181,2]
[311982366,1705529439539,-496.66696298,0.00021917,2]
[311982368,1705529439550,-497.72312481,0.00021917,2]
[311982370,1705529439561,-500.0,0.00021917,2]
[311982372,1705529439574,-710.87,0.00021917,2]
[311982376,1705529439585,-262.04807928,0.00021917,2]
[311982378,1705529439598,-500.0,0.00021917,2]
[311982380,1705529439609,-500.0,0.00021917,2]
[311982383,1705529439621,-454.48626207,0.00021917,2]
[311982385,1705529439635,-500.0,0.00021917,2]
[311982387,1705529439646,-502.82129946,0.00021917,2]
[311982389,1705529439656,-261.31076788,0.00021917,2]
[311982392,1705529439669,-500.0,0.00021917,2]
[311982394,1705529439682,-500.0,0.00021917,2]
[311982396,1705529439693,-500.0,0.00021917,2]
[311982398,1705529439705,-500.0,0.00021917,2]
[311982401,1705529439717,-500.0,0.00021917,2]
[311982403,1705529439728,-500.0,0.00021917,2]
[311982405,1705529439741,-454.68388981,0.00021917,2]
[311982408,1705529439754,-500.0,0.00021917,2]
[311982410,1705529439765,-500.0,0.00021917,2]
[311982412,1705529439778,-500.0,0.00021917,2]
[311982415,1705529439792,-500.0,0.00021917,2]
[311982417,1705529439806,-500.0,0.00021917,2]
[311982420,1705529439817,-222.47310657,0.00021917,2]
[311982422,1705529439830,-500.0,0.00021917,2]
[311982424,1705529439841,-523.84467898,0.00021917,2]
[311982426,1705529439851,-500.0,0.00021917,2]
[311982428,1705529439862,-500.0,0.00021917,2]
[311982431,1705529439873,-500.0,0.00021917,2]
[311982433,1705529439886,-500.0,0.00021917,2]
[311982435,1705529439897,-500.0,0.00021917,2]
[311982437,1705529439909,-500.0,0.00021917,2]
[311982440,1705529439921,-476.36050445,0.00021917,2]
[311982442,1705529439931,-500.0,0.00021917,2]
[311982444,1705529439942,-500.0,0.00021917,2]
[311982446,1705529439955,-500.0,0.00021917,2]
[311982448,1705529439966,-1266.12,0.00021917,2]
[311982450,1705529439978,-500.0,0.00021917,2]
[311982453,1705529439988,-500.0,0.00021917,2]
[311982455,1705529440000,-500.0,0.00021917,2]
[311982457,1705529440010,-1672.34,0.00021917,2]
[311982459,1705529440021,-500.0,0.00021917,2]
[311982461,1705529440033,-500.0,0.00021917,2]
[311982463,1705529440044,-168.73604106,0.00021917,2]
[311982466,1705529440056,-500.0,0.00021917,2]
[311982468,1705529440067,-500.0,0.00021917,2]
[311982470,1705529440077,-500.0,0.00021917,2]
[311982472,1705529440089,-500.0,0.00021917,2]
[311982474,1705529440100,-500.0,0.00021917,2]
[311982477,1705529440111,-500.0,0.00021917,2]
[311982479,1705529440122,-500.0,0.00021917,2]
[311982481,1705529440134,-500.0,0.00021917,2]
[311982483,1705529440145,-500.0,0.00021917,2]
[311982485,1705529440156,-500.0,0.00021917,2]
[311982488,1705529440167,-500.0,0.00021917,2]
[311982490,1705529440178,-500.0,0.00021917,2]
[311982492,1705529440189,-500.0,0.00021917,2]
[311982494,1705529440200,-500.0,0.00021917,2]
[311982496,1705529440211,-500.0,0.00021917,2]
[311982499,1705529440222,-500.0,0.00021917,2]
[311982501,1705529440233,-500.0,0.00021917,2]
[311982503,1705529440245,-500.0,0.00021917,2]
[311982505,1705529440256,-500.0,0.00021917,2]
[311982507,1705529440267,-621.42,0.00021917,2]
[311982510,1705529440278,-500.0,0.00021917,2]
[311982512,1705529440289,-263.49192401,0.00021917,2]
[311982514,1705529440300,-500.0,0.00021917,2]
[311982516,1705529440311,-500.0,0.00021917,2]
[311982519,1705529440322,-500.0,0.00021917,2]
[311982521,1705529440333,-500.0,0.00021917,2]
[311982523,1705529440344,-500.0,0.00021917,2]
[311982525,1705529440354,-500.0,0.00021917,2]
[311982540,1705529440478,-500.0,0.00021917,2]
[311982542,1705529440487,-500.0,0.00021917,2]
[311982544,1705529440497,-605.36,0.00021917,2]
[311982546,1705529440505,-500.0,0.00021917,2]
[311982548,1705529440514,-1225.94,0.00021917,2]
[311982550,1705529440524,-500.0,0.00021917,2]
[311982552,1705529440533,-500.0,0.00021917,2]
[311982554,1705529440542,-500.0,0.00021917,2]
[311982557,1705529440552,-500.0,0.00021917,2]
[311982558,1705529440562,-500.0,0.00021917,2]
[311982560,1705529440571,-643.11957261,0.00021917,2]
[311982562,1705529440580,-750.96,0.00021917,2]
[311982564,1705529440589,-500.0,0.00021917,2]
[311982566,1705529440598,-500.0,0.00021917,2]
[311982568,1705529440607,-500.0,0.00021917,2]
[311982570,1705529440616,-500.0,0.00021917,2]
[311982572,1705529440625,-500.0,0.00021917,2]
[311982574,1705529440634,-890.84,0.00021917,2]
[311982576,1705529440643,-500.0,0.00021917,2]
[311982578,1705529440653,-500.0,0.00021917,2]
[311982580,1705529440661,-500.0,0.00021917,2]
[311982582,1705529440670,-7480.23,0.00021917,2]
[311982584,1705529440679,-500.0,0.00021917,2]
[311982586,1705529440688,-5837.46,0.00021917,2]
[311982588,1705529440698,-500.0,0.00021917,2]
[311982590,1705529440707,-500.0,0.00021917,2]
[311982592,1705529440716,-500.0,0.00021917,2]
[311982594,1705529440725,-500.0,0.00021917,2]
[311982596,1705529440735,-500.0,0.00021917,2]
[311982598,1705529440745,-2262.63,0.00021917,2]
[311982600,1705529440754,-500.0,0.00021917,2]
[311982602,1705529440763,-500.0,0.00021917,2]
[311982604,1705529440772,-611.26,0.00021917,2]
[311982606,1705529440781,-500.0,0.00021917,2]
[311982608,1705529440791,-500.0,0.00021917,2]
[311982610,1705529440800,-500.0,0.00021917,2]
[311982612,1705529440810,-500.0,0.00021917,2]
[311982614,1705529440819,-3424.54,0.00021917,2]
[311982616,1705529440828,-500.0,0.00021917,2]
[311982618,1705529440838,-3533.26,0.00021917,2]
[311982620,1705529440847,-500.0,0.00021917,2]
[311982622,1705529440857,-986.89,0.00021917,2]
[311982624,1705529440866,-500.0,0.00021917,2]
[311982626,1705529440875,-3168.18,0.00021917,2]
[311982628,1705529440885,-500.0,0.00021917,2]
[311982630,1705529440894,-500.0,0.00021917,2]
[311982632,1705529440903,-500.0,0.00021917,2]
[311982634,1705529440912,-624.87,0.00021917,2]
[311982636,1705529440921,-500.0,0.00021917,2]
[311982638,1705529440931,-500.0,0.00021917,2]
[311982640,1705529440940,-500.0,0.00021917,2]
[311982642,1705529440951,-1202.86,0.00021917,2]
[311982644,1705529440970,-500.0,0.00021917,2]
[311982646,1705529440979,-500.0,0.00021917,2]
[311982648,1705529440988,-7276.52,0.00021917,2]
[311982650,1705529440998,-500.0,0.00021917,2]
[311982652,1705529441008,-502.8108887,0.00021917,2]
[311982654,1705529441017,-578.94678532,0.00021917,2]
[311982656,1705529441027,-703.73,0.00021917,2]
[311982658,1705529441037,-644.63,0.00021917,2]
[311982660,1705529441047,-500.0,0.00021917,2]
[311982662,1705529441057,-500.0,0.00021917,2]
[311982664,1705529441066,-1421.82,0.00021917,2]
[311982666,1705529441076,-749.79,0.00021917,2]
[311982668,1705529441086,-522.52346659,0.00021917,2]
[311982670,1705529441095,-1003.24708738,0.00021917,2]
[311982672,1705529441105,-500.0,0.00021917,2]
[311982674,1705529441115,-500.0,0.00021917,2]
[311982676,1705529441125,-510.11734616,0.00021917,2]
[311982678,1705529441135,-500.0,0.00021917,2]
[311982680,1705529441145,-500.0,0.00021917,2]
[311982682,1705529441155,-500.0,0.00021917,2]
[311982684,1705529441164,-500.0,0.00021917,2]
[311982686,1705529441174,-500.0,0.00021917,2]
[311982688,1705529441183,-500.0,0.00021917,2]
[311982690,1705529441192,-535.93108189,0.00021917,2]
[311982692,1705529441202,-501.41975854,0.00021917,2]
[311982694,1705529441211,-500.0,0.00021917,2]
[311982696,1705529441220,-599.62,0.00021917,2]
[311982698,1705529441230,-166.666666,0.00021918,2]
[311982700,1705529441240,-112440.55449957,0.00021954,2]
[311982702,1705529441251,-177.21329716,0.00021998,2]
[311982705,1705529441261,-164.86241219,0.00021998,2]
[311982707,1705529441271,-1260.09780894,0.00021998,2]
[311982709,1705529441280,-293.1976279,0.00022,4]
[311982710,1705529441289,-3955.54830897,0.00022,2]
[311982713,1705529441299,-425.53656097,0.00022,2]
[311982715,1705529441309,-500.0,0.00022053,2]
[311982717,1705529441318,-710.87,0.00022054,2]
[311982719,1705529441328,-500.0,0.00022054,2]
[311982721,1705529441337,-500.0,0.00022054,2]
[311982723,1705529441347,-500.0,0.00022054,2]
[311982725,1705529441357,-500.0,0.00022054,2]
[311982727,1705529441366,-500.0,0.00022054,2]
[311982728,1705529441375,-500.0,0.00022054,2]
[311982731,1705529441385,-500.0,0.00022054,2]
[311982732,1705529441394,-500.0,0.00022054,2]
[311982735,1705529441404,-500.0,0.00022054,2]
[311982737,1705529441413,-500.0,0.00022054,2]
[311982738,1705529441423,-500.0,0.00022054,2]
[311982740,1705529441432,-500.0,0.00022054,2]
[311982742,1705529441441,-500.0,0.00022054,2]
[311982744,1705529441450,-500.0,0.00022054,2]
[311982746,1705529441460,-500.0,0.00022054,2]
[311982748,1705529441469,-500.0,0.00022054,2]
[311982750,1705529441478,-500.0,0.00022054,2]
[311982752,1705529441488,-500.0,0.00022054,2]
[311982754,1705529441497,-1266.12,0.00022054,2]
[311982756,1705529441507,-500.0,0.00022054,2]
[311982758,1705529441517,-1672.34,0.00022054,2]
[311982761,1705529441526,-500.0,0.00022054,2]
[311982763,1705529441535,-500.0,0.00022054,2]
[311982765,1705529441544,-500.0,0.00022054,2]
[311982767,1705529441555,-539.44145748,0.00022054,2]
[311982769,1705529441566,-500.0,0.00022054,2]
[311982770,1705529441575,-500.0,0.00022054,2]
[311982772,1705529441584,-500.0,0.00022054,2]
[311982774,1705529441594,-500.0,0.00022054,2]
[311982776,1705529441604,-500.0,0.00022054,2]
[311982778,1705529441615,-500.0,0.00022054,2]
[311982781,1705529441625,-490.57231035,0.00022054,2]
[311982782,1705529441634,-500.0,0.00022054,2]
[311982784,1705529441644,-503.6558925,0.00022054,2]
[311982787,1705529441654,-621.42,0.00022054,2]
[311982789,1705529441663,-500.0,0.00022054,2]
[311982791,1705529441673,-500.0,0.00022054,2]
[311982793,1705529441682,-500.0,0.00022054,2]
[311982794,1705529441691,-605.36,0.00022054,2]
[311982797,1705529441701,-500.0,0.00022054,2]
[311982798,1705529441710,-500.0,0.00022054,2]
[311982800,1705529441719,-1225.94,0.00022054,2]
[311982803,1705529441729,-500.0,0.00022054,2]
[311982804,1705529441739,-500.0,0.00022054,2]
[311982806,1705529441749,-500.0,0.00022054,2]
[311982808,1705529441758,-241.37531993,0.00022054,2]
[311982810,1705529441769,-500.0,0.00022054,2]
[311982812,1705529441779,-750.96,0.00022054,2]
[311982814,1705529441788,-500.0,0.00022054,2]
[311982816,1705529441797,-500.0,0.00022054,2]
[311982818,1705529441807,-500.0,0.00022054,2]
[311982820,1705529441816,-890.84,0.00022054,2]
[311982822,1705529441825,-500.0,0.00022054,2]
[311982824,1705529441834,-7480.23,0.00022054,2]
[311982826,1705529441843,-5837.46,0.00022054,2]
[311982828,1705529441853,-500.0,0.00022054,2]
[311982830,1705529441862,-500.0,0.00022054,2]
[311982832,1705529441871,-500.0,0.00022054,2]